Cogmind - Beta 10.2 @@@ ROGUE MODE // 2020.12.24 @ 18:45:43 Player: Perseus Result: Destroyed by S-43 Plague with Heavy Machine Gun Performance ------------- Evolutions (9) 4500 Regions Visited (27) 5400 Robots Destroyed (307) 1535 Value Destroyed (14323) 14323 Prototype IDs (83) 1660 Alien Tech Used (4) 800 Bonus (11334) 11334 TOTAL SCORE: 39552 Bonus ------- High Alert Combat Kills 2252 Follower Combat Kills 3035 Entered Garrisons 200 Used RIF Installer 500 Network Hubs Disabled 400 Aligned with FarCom 300 Met Data Miner 300 Met Imprinter 300 Met Zhirov 300 Built Enhanced Grunts 300 Read Decrypted Archives 300 Used Core Reset Matrix 3000 Hacked Protovariant 500 Scanned by Researcher 500 Friendly Fire -853 Cogmind --------- Core Integrity 0/1600 Matter 300/300 Energy 64/100 System Corruption 16% Temperature Cool (0) Movement Core (50) Location -1/Access Parts ------- > --- POWER (3) -------- (None) > --- PROPULSION (6) --- (None) > --- UTILITY (10) ----- Advanced Visual Processing Unit Improved Melee Analysis Suite Advanced Core Analyzer > --- WEAPON (6) ------- (None) > --- INVENTORY (4) ---- Myomer Leg Antigrav System Antigrav System Stasis Projector Peak State ------------ > --- POWER ------------ Light Particle Reactor Graviton Reactor Quantum Reactor > --- PROPULSION ------- Myomer Leg Enhanced Biometal Leg Centrium Leg High-density Centrium Leg High-density Centrium Leg High-density Centrium Leg > --- UTILITY ---------- Advanced Heat Sink Large Storage Unit Large Storage Unit Advanced Signal Interpreter Advanced Terrain Scan Processor Experimental Core Analyzer Phase Armor > --- WEAPON ----------- Gamma Rifle Heavy Quantum Rifle Heavy Neutron Cannon Heavy Neutron Cannon Hypervelocity Multirail Heavy Gauss Cannon > --- INVENTORY -------- Graviton Reactor Quantum Reactor Light Quantum Reactor Centrium Leg Long-range Sensor Array Launcher Loader Propulsion Shielding System Purifier Compact Linear Accelerator Fusion Bomb Launcher Sigix Terminator Field Lobotomy Kit [Rating: 200] Favorites ----------- Power Improved Deuterium Engine Engine Improved Deuterium Engine Power Core Micro Fission Core Reactor Quantum Reactor Propulsion Myomer Leg Treads Light Treads Leg Myomer Leg Wheel Armored Huge Wheel Hover Unit Gyrokinetic Inverter Flight Unit Nuclear Pulse Thruster Utility Large Storage Unit Device Long-range Sensor Array Storage Large Storage Unit Processor Advanced Signal Interpreter Hackware Hacking Suite Protection Propulsion Shielding Artifact Phase Armor Weapon Flak Gun Energy Gun Beamcaster Energy Cannon Heavy Neutron Cannon Ballistic Gun Flak Gun Ballistic Cannon Linear Accelerator Launcher Improved Grenade Launcher Special Weapon Improved Remote Datajack Slashing Weapon Master Tearclaws Special Melee Weapon Improved Datajack Build | -11 -10 -10 -10 -9 -8 -7 -7 -7 -7 -6 -6 -6 -6 -6 -5 -5 -5 -5 -5 -5 -4 -4 -3 -3 -2 -2 -1 ------- Run | Scr Mat Min Exi Min Mat Fac Low Low Zio Pro Fac Low Low Dat Pro Fac Ext Cet Arc Hub Fac Gar Res Qua Res Tes Acc Slots Evolved 18 | . . . . . 4 2 . . . . 2 . . . . 2 . . . . 2 . 2 . 2 . 2 Power 2 | . . . . . . . . . . . . . . . . 1 . . . . 1 . . . . . . Propulsion 4 | . . . . . 1 . . . . . 1 . . . . . . . . . . . 1 . 1 . . Utility 8 | . . . . . 2 1 . . . . 1 . . . . 1 . . . . 1 . . . . . 2 Weapon 4 | . . . . . 1 1 . . . . . . . . . . . . . . . . 1 . 1 . . Parts Attached 604 | 7 . 22 5 5 21 112 13 2 1 4 14 20 22 . 14 3 36 5 4 18 15 44 26 41 54 32 64 Power 60 | 1 . 2 . . 2 9 . 1 . 1 1 . . . 1 . 5 1 1 3 1 4 5 4 5 4 9 Engine 22 | 1 . 2 . . 2 6 . 1 . 1 1 . . . 1 . 5 . . 1 . . . . . . 1 Core 8 | . . . . . . 3 . . . . . . . . . . . . . 1 1 2 1 . . . . Reactor 30 | . . . . . . . . . . . . . . . . . . 1 1 1 . 2 4 4 5 4 8 Propulsion 109 | 2 . 5 . 3 6 13 5 . . . 1 2 3 . 2 1 11 . 1 4 2 3 8 5 8 5 19 Treads 3 | . . . . . . 1 . . . . . . 1 . . . . . . . 1 . . . . . . Leg 91 | 2 . 5 . 3 6 11 5 . . . 1 2 . . 2 1 11 . 1 4 . 3 8 5 8 5 8 Wheel 2 | . . . . . . 1 . . . . . . 1 . . . . . . . . . . . . . . Hover 4 | . . . . . . . . . . . . . . . . . . . . . 1 . . . . . 3 Flight 9 | . . . . . . . . . . . . . 1 . . . . . . . . . . . . . 8 Utility 236 | 2 . . 3 . 7 55 4 1 1 3 7 13 9 . 8 1 10 1 1 8 8 20 5 11 26 15 17 Device 200 | 1 . . . . 5 49 4 . 1 3 5 12 8 . 7 1 10 1 1 7 8 14 5 10 23 13 12 Storage 12 | . . . 3 . . 3 . 1 . . . 1 1 . 1 . . . . . . 2 . . . . . Processor 11 | 1 . . . . 1 2 . . . . 2 . . . . . . . . . . . . . 1 1 3 Hackware 7 | . . . . . . . . . . . . . . . . . . . . 1 . 4 . 1 1 . . Protection 4 | . . . . . 1 1 . . . . . . . . . . . . . . . . . . 1 . 1 Artifact 2 | . . . . . . . . . . . . . . . . . . . . . . . . . . 1 1 Weapon 199 | 2 . 15 2 2 6 35 4 . . . 5 5 10 . 3 1 10 3 1 3 4 17 8 21 15 8 19 Energy Gun 66 | 1 . 6 . 1 1 5 2 . . . 2 2 2 . . 1 4 2 . 1 . 6 3 13 4 2 8 Energy Cannon 26 | . . 3 . 1 1 9 . . . . . . 1 . . . . . . 1 . . 1 2 5 2 . Ballistic Gun 61 | 1 . 5 1 . 2 15 . . . . 3 2 4 . 2 . 5 1 1 1 3 6 2 . 1 2 4 Ballistic Cannon 10 | . . . . . 1 2 . . . . . . . . . . . . . . 1 . 1 2 1 1 1 Launcher 21 | . . 1 . . . 4 2 . . . . 1 2 . 1 . 1 . . . . 1 . 1 4 1 2 Special Weapon 12 | . . . . . 1 . . . . . . . . . . . . . . . . 4 1 3 . . 3 Impact Weapon . | . . . . . . . . . . . . . . . . . . . . . . . . . . . . Slashing Weapon 1 | . . . . . . . . . . . . . 1 . . . . . . . . . . . . . . Piercing Weapon . | . . . . . . . . . . . . . . . . . . . . . . . . . . . . Special Melee Weapon 2 | . . . 1 . . . . . . . . . . . . . . . . . . . . . . . 1 Unidentified Prototypes 21 | . . . . . . 2 . . . . . 1 . . . . 1 2 . . . . 3 4 3 4 1 Parts Lost 157 | . . 4 . 2 4 18 . 1 . 1 2 2 . . 2 . 5 . 12 6 5 8 6 7 8 11 53 Power 21 | . . 1 . . . 3 . . . . . . . . . . 1 . 1 2 . 1 2 . . 1 9 Propulsion 37 | . . . . . 1 5 . . . . . . . . 1 . 1 . 3 1 2 1 2 1 1 3 15 Utility 31 | . . . . . . . . 1 . 1 . . . . 1 . . . 4 . 1 3 . . 3 3 14 Weapon 68 | . . 3 . 2 3 10 . . . . 2 2 . . . . 3 . 4 3 2 3 2 6 4 4 15 Highest Loss Streak 19 | . . 2 . 2 2 5 . 1 . 1 1 2 . . 2 . 2 . 12 5 5 3 5 4 4 7 19 Average Slot Usage (%) 94 | . 100 98 94 98 91 96 77 100 94 99 95 96 96 100 99 89 96 99 88 78 77 96 96 98 97 94 71 Engine 5 | . 14 13 14 14 9 5 7 7 7 7 6 6 6 6 6 5 10 6 5 5 2 1 . . . . . Reactor 1 | . . . . . . . . . . . . . . . . . . 3 4 . . 3 9 13 13 12 9 Treads 1 | . . . . . . . 5 . . . . . 3 6 . . . . . . 2 . . . . . . Leg 20 | . 28 28 28 28 25 21 1 23 23 23 23 26 18 13 25 23 22 23 20 18 13 19 21 22 25 23 19 Device 14 | . 14 14 8 . 6 9 15 15 9 14 13 11 11 13 12 13 17 17 13 13 23 24 19 21 18 13 8 Storage 12 | . . . 14 28 18 15 15 15 15 15 13 11 11 13 12 11 11 11 11 11 6 5 9 9 8 8 5 Processor 9 | . 14 13 . . 6 12 7 7 7 7 11 13 13 13 13 11 11 11 9 5 5 5 4 4 6 11 13 Energy Gun 8 | . 14 15 14 8 3 3 7 7 7 7 12 9 6 13 13 10 6 9 9 3 . 9 16 18 13 7 4 Energy Cannon 1 | . . 1 . 4 7 6 . . . . . . . 6 5 . . . . 2 . . 1 1 6 9 1 Ballistic Gun 9 | . 14 10 2 14 12 16 7 7 7 7 10 14 16 6 6 11 12 11 9 9 6 8 4 . . 3 2 Launcher 3 | . . . . . . . . 15 15 15 1 1 2 . . . . 1 . . . . . . . . . Naked Turns . | . . . . . . . . . . . . . . . . . . . . . . . . . . . . Heaviest Build 180 | 8 8 13 26 30 40 70 68 68 68 68 67 69 71 68 71 65 79 90 90 79 59 88 124 132 147 180 165 Greatest Support 186 | 20 20 20 20 33 63 75 70 70 70 70 70 100 87 10 67 67 85 85 85 80 75 75 113 132 182 186 186 Greatest Overweight (x) 6 | . . . 1 1 1 2 2 1 . . . . 6 6 2 . 1 1 2 1 1 1 1 1 . 1 1 Average Overweight (x) . | . . . . . . . . . . . . . 1 6 . . . . 1 . . . . . . . . Largest Inventory Capacity 16 | 4 4 4 12 12 12 16 16 16 16 16 16 16 16 16 16 16 16 16 16 16 16 16 16 16 16 16 16 Average Capacity 14 | 4 4 4 8 12 12 13 16 16 16 16 16 14 15 16 15 16 16 16 16 16 11 10 16 16 16 16 12 Most Carried 16 | 4 4 4 12 12 12 16 16 16 16 16 16 16 16 16 16 16 16 16 16 16 16 16 16 16 16 16 16 Average Carried 12 | 3 3 3 7 11 11 12 12 14 15 13 15 12 11 16 12 16 15 15 15 14 11 10 15 15 15 14 11 Final Capacity 16 | 4 4 4 12 12 12 16 16 16 16 16 16 16 16 16 16 16 16 16 16 16 16 16 16 16 16 16 16 Final Carried 16 | 3 4 4 12 12 12 15 16 16 16 16 16 16 16 16 16 16 16 16 13 15 15 16 16 15 14 13 16 Class Distribution -------------------- 52% | Scavenger-Mutant 19% | Scavenger-Skirmisher 10% | Mutant 3% | Derelict-Mutant 3% | Derelict-Skirmisher Dominant Class ---------------- Mutant | -10/Materials Scavenger-Mutant | -10/Mines Scavenger-Mutant | -10/Exiles Scavenger-Mutant | -9/Mines Scavenger-Mutant | -8/Materials Mutant | -7/Factory Scavenger-Mutant | -7/Lower Caves Scavenger-Mutant | -7/Lower Caves Scavenger-Mutant | -7/Zion Scavenger-Mutant | -6/Proximity Caves Scavenger-Mutant | -6/Factory Scavenger-Mutant | -6/Lower Caves Scavenger-Mutant | -6/Lower Caves Derelict-Skirmisher | -6/Data Miner Derelict-Mutant | -5/Proximity Caves Scavenger-Mutant | -5/Factory Scavenger-Skirmisher | -5/Extension Scavenger-Tank | -5/Cetus Scavenger-Tank | -5/Archives Scavenger-Skirmisher | -5/Hub_04(d) Scavenger-Skirmisher | -4/Factory Scavenger-Mutant | -4/Garrison Scavenger-Mutant | -3/Research Scavenger-Mutant | -3/Quarantine Scavenger-Mutant | -2/Research Generator-Mutant | -2/Testing Scavenger-Mutant | -1/Access Resources | -11 -10 -10 -10 -9 -8 -7 -7 -7 -7 -6 -6 -6 -6 -6 -5 -5 -5 -5 -5 -5 -4 -4 -3 -3 -2 -2 -1 ----------- Run | Scr Mat Min Exi Min Mat Fac Low Low Zio Pro Fac Low Low Dat Pro Fac Ext Cet Arc Hub Fac Gar Res Qua Res Tes Acc Matter Collected 13569 | 334 . 282 . 143 535 2228 383 155 67 165 135 1303 1004 . 461 123 986 204 . 314 157 1140 330 734 873 412 1101 Remotely . | . . . . . . . . . . . . . . . . . . . . . . . . . . . . Salvage Created 14920 | 330 . 697 . 195 579 2581 123 366 . 168 200 224 472 . 290 . 944 234 59 821 157 992 609 855 1680 895 1449 Parts 728 | 34 . 40 . 14 29 116 1 17 . 4 17 11 19 . 8 . 39 11 2 39 10 40 33 50 101 30 63 Haulers Intercepted 4 | . . . . . . 1 . . . . . . . . . . . . . 2 . . . . . . 1 Recyclers Shooed 11 | 1 . 1 . 2 1 . . . . . . . . . . . . . . . . . . . 2 . 4 Parts Field Recycled . | . . . . . . . . . . . . . . . . . . . . . . . . . . . . Retrieved Matter . | . . . . . . . . . . . . . . . . . . . . . . . . . . . . Parts Self-Destructed 47 | . . . . . . . 7 14 . 6 . 10 3 . 7 . . . . . . . . . . . . Prevented 16 | . . . . . . . . . . 6 . 3 2 . 5 . . . . . . . . . . . . Kills | -11 -10 -10 -10 -9 -8 -7 -7 -7 -7 -6 -6 -6 -6 -6 -5 -5 -5 -5 -5 -5 -4 -4 -3 -3 -2 -2 -1 ------- Run | Scr Mat Min Exi Min Mat Fac Low Low Zio Pro Fac Low Low Dat Pro Fac Ext Cet Arc Hub Fac Gar Res Qua Res Tes Acc Combat Hostiles Destroyed 214 | . . 17 . 6 12 39 . 9 . 2 5 3 1 . 3 . 13 3 1 8 2 17 7 10 24 11 21 Melee 1 | . . . . . . . . . . . . . . . . . . . . . . . . . . . 1 Guns 133 | . . 14 . 6 7 19 . 2 . 1 5 1 1 . 2 . 13 2 1 8 2 12 7 6 12 5 7 Cannons 30 | . . . . . 4 11 . . . . . . . . 1 . . . . . . . . 4 3 3 4 AOE 46 | . . 3 . . . 9 . 7 . 1 . 2 . . . . . 1 . . . 5 . . 8 3 7 Classes Destroyed 24 | 3 . 4 . 1 3 4 1 . . 1 . . 1 . . . 1 . . . . . . 2 1 1 1 Worker 21 | 4 . 2 . . . 6 . . . . 1 . . . . . . . . 2 . . 2 1 . 2 1 Builder 14 | . . 3 . . 1 1 . . . . . . . . . . 1 . . 2 . . . . 1 1 4 Tunneler 12 | 9 . 2 . . . 1 . . . . . . . . . . . . . . . . . . . . . Hauler 4 | . . . . . . 1 . . . . . . . . . . . . . 2 . . . . . . 1 Recycler 17 | 1 . 1 . 1 2 6 . . . . . . . . . . . . . . . . . . 2 2 2 Minesweeper 2 | . . . . . . . . . . 1 . . 1 . . . . . . . . . . . . . . Operator 5 | . . . . . 1 . . . . . . . . . . . 1 . . 1 . . . . 1 1 . Watcher 17 | . . . . . . 2 . . . . 1 . . . . . 1 1 . 2 1 . . 1 4 . 4 Swarmer 44 | . . 8 . 3 4 . . . . . 4 1 . . . . 2 . . . . 11 . . 9 . 2 Saboteur 2 | . . . . . . . . . . . . . . . . . . . . . . . . . . 1 1 Grunt 78 | . . 7 . 1 5 18 . 8 . 2 . . . . 2 . 4 1 1 5 . 3 3 1 4 4 9 Brawler 3 | . . . . . . 2 . . . . . . . . 1 . . . . . . . . . . . . Duelist 7 | . . . . 1 . 2 . 1 . . . . . . . . . . . . . . . . . 2 1 Protector 1 | . . . . . . . . . . . . . . . . . . . . . . . . . . . 1 Researcher 3 | . . . . . . . . . . . . . . . . . . . . . . . . 3 . . . Sentry 22 | . . . . . 2 9 . . . . . 1 . . . . 5 . . 1 . 1 . . 3 . . Hunter 11 | . . . . . 1 3 . . . . 1 1 . . . . . . . . . 2 1 . . . 2 Programmer 34 | . . . . . . 5 . . . . . . . . . . . 1 . 2 2 . 4 8 4 3 5 Q-Series 5 | . . . . . . . . . . . . . . . . . . . . . . . . . 4 1 . Behemoth 2 | . . . . . . . . . . . . . . . . . 2 . . . . . . . . . . Cetus Guard 1 | . . . . . . . . . . . . . . . . . . 1 . . . . . . . . . Alpha 7 1 | . . . . . . . . . . . . . . . . . . . . . . . . 1 . . . Decomposer 7 | . . . . . . . . . . 1 . 3 3 . . . . . . . . . . . . . . Packrat 1 | . . . . . . . . . . . . . 1 . . . . . . . . . . . . . . Samaritan 8 | . . . . . . . 4 . . . . . 3 . 1 . . . . . . . . . . . . Master Thief 1 | . . . . . . . . . . . . . 1 . . . . . . . . . . . . . . Assembled 3 | . . 2 . 1 . . . . . . . . . . . . . . . . . . . . . . . Best Kill Streak 10 | 4 . 10 . 4 6 8 . 4 . 2 4 1 1 . 3 . 6 2 1 7 2 4 4 3 8 8 9 Combat Bots Only 7 | . . 7 . 3 5 6 . 4 . 2 3 1 1 . 3 . 6 1 1 3 2 4 3 3 5 6 5 Max Kills in Single Turn 9 | 1 . 2 . 2 2 4 1 2 . 1 2 1 1 . 1 . 2 1 1 4 1 2 2 1 3 3 9 Gunslinging 1 | . . . . . 1 . . . . . . . . . . . . . . . . . . . . . 1 Exploded 5 | . . 2 . . . 3 . 2 . 1 . 1 . . . . . 1 . . . 2 . . 2 2 5 Melee 1 | . . . . . . . . . . . . . . . . . . . . . . . . . . . 1 Uniques/NPCs Destroyed . | . . . . . . . . . . . . . . . . . . . . . . . . . . . . Combat | -11 -10 -10 -10 -9 -8 -7 -7 -7 -7 -6 -6 -6 -6 -6 -5 -5 -5 -5 -5 -5 -4 -4 -3 -3 -2 -2 -1 -------- Run | Scr Mat Min Exi Min Mat Fac Low Low Zio Pro Fac Low Low Dat Pro Fac Ext Cet Arc Hub Fac Gar Res Qua Res Tes Acc Damage Taken 28997 | . . 655 . 198 933 4239 . 140 . 41 779 231 101 . 260 35 1202 357 1138 1529 434 1280 1406 1611 2467 2322 7639 Core 3712 | . . 85 . 33 73 543 . 13 . . 36 59 12 . 4 . 121 30 75 305 . 132 133 166 187 84 1621 Absorbed by Shields 1624 | . . . . . . . . . . . . . . . . . 127 162 102 . 10 366 239 347 271 . . Core Remaining (%) 70 | 100 . . . 52 86 . . . . 20 . . . . 86 . . . . 46 . 88 . 77 . 81 . Volleys Fired 1190 | 64 . 73 . 18 66 208 25 11 . 16 27 19 89 . 12 17 53 11 1 30 14 86 30 72 89 29 130 Largest 6 | 2 . 2 . 2 3 4 1 4 . 4 4 4 3 . 4 4 4 4 4 4 1 4 5 5 6 6 5 Hottest 539 | 60 . 100 . 83 136 201 80 178 . 178 196 176 141 . 252 198 214 225 225 238 65 213 318 422 517 539 366 Shots Fired 2559 | 125 . 123 . 31 118 495 25 29 . 25 83 41 97 . 26 20 131 32 4 84 14 200 101 222 241 79 213 Gun 1958 | 125 . 95 . 30 74 330 25 13 . 12 83 33 92 . 18 20 131 30 4 69 13 188 94 158 144 37 140 Cannon 494 | . . 24 . 1 44 152 . . . . . . . . 6 . . . . 15 1 . 7 55 88 36 65 Launcher 83 | . . 4 . . . 13 . 16 . 13 . 8 5 . 2 . . 2 . . . 2 . . 9 6 3 Special 24 | . . . . . . . . . . . . . . . . . . . . . . 10 . 9 . . 5 Kinetic 1017 | 64 . 30 . 17 90 279 . 6 . 5 38 30 15 . . 2 99 22 2 51 14 92 38 36 28 18 41 Thermal 1041 | 61 . 65 . 10 15 172 25 7 . 7 45 3 . . 12 16 31 8 2 33 . 64 51 142 112 41 119 Explosive 44 | . . 4 . . . 8 . 10 . 5 . . . . . . . . . . . . . . 9 6 2 Electromagnetic 433 | . . 24 . 4 13 36 . 6 . 8 . 8 82 . 14 2 1 2 . . . 34 12 35 92 14 46 Robot Hit Streak 17 | 12 . 7 . 4 10 14 11 7 . 12 5 6 8 . 11 2 9 8 1 10 9 12 8 14 16 13 17 Robot Miss Streak 13 | 5 . 5 . 3 5 3 2 3 . 4 13 2 4 . 1 3 5 3 2 3 6 8 4 4 4 5 5 Penetration Max 1 | . . . . . 1 1 . . . . . . . . . . 1 . . 1 . . 1 . . 1 1 Secondary Targets 10 | . . 2 . . 1 . . . . . . . . . . . 2 . . . . 2 1 . 1 . 1 Max Gunslinging Chain 1 | . . 1 . . 1 . . . . . . . . . . . 1 . . . . 1 1 . 1 . 1 Shots Hit Robots 1470 | 78 . 65 4 15 74 280 25 15 . 15 43 21 59 . 20 2 78 18 1 49 11 102 52 147 135 38 123 Core Hits 715 | 20 . 38 . 9 24 122 17 19 . 13 17 10 26 . 11 1 48 15 1 37 7 39 19 37 73 38 74 Critical Hits 28 | . . . . . 1 3 . . . . . . . . . . 2 . . 1 . . 2 2 2 12 3 Critical Kills 9 | . . . . . . 1 . . . . . . . . . . 1 . . 1 . . 1 . . 3 2 Critical Parts Destroyed 16 | . . . . . 1 2 . . . . . . . . . . . . . . . . 1 2 2 8 . Melee Attacks 4 | . . . 4 . . . . . . . . . . . . . . . . . . . . . . . . Impact . | . . . . . . . . . . . . . . . . . . . . . . . . . . . . Slashing . | . . . . . . . . . . . . . . . . . . . . . . . . . . . . Piercing . | . . . . . . . . . . . . . . . . . . . . . . . . . . . . Sneak Attacks 4 | . . . 4 . . . . . . . . . . . . . . . . . . . . . . . . Combat Hostiles . | . . . . . . . . . . . . . . . . . . . . . . . . . . . . Follow-up Attacks . | . . . . . . . . . . . . . . . . . . . . . . . . . . . . Damage Inflicted 49656 | 760 . 1110 . 198 1514 6955 598 759 . 514 665 445 917 . 471 45 3108 590 39 2340 527 2354 1409 3396 6479 2186 12277 Guns 25398 | 760 . 706 . 176 814 3606 598 189 . 224 665 308 733 . 237 45 3108 333 39 1067 527 1973 1409 2587 2629 647 2018 Cannons 6545 | . . 89 . 22 641 1810 . . . . . . . . 50 . . . . 264 . . . 809 1152 743 965 Explosions 17516 | . . 315 . . 59 1506 . 570 . 290 . 137 184 . 184 . . 257 . 935 . 381 . . 2613 796 9289 Melee . | . . . . . . . . . . . . . . . . . . . . . . . . . . . . Ramming 197 | . . . . . . 33 . . . . . . . . . . . . . 74 . . . . 85 . 5 Kinetic 13101 | 299 . 116 . 121 1031 2949 . 64 . 99 228 273 141 . . 45 2604 262 . 739 527 833 660 575 477 280 778 Thermal 23779 | 461 . 599 . 52 267 2228 598 319 . 125 437 35 . . 124 . 490 71 39 592 . 956 731 2270 2055 764 10566 Explosive 5212 | . . 127 . . . 1098 . 341 . 112 . . . . . . . . . . . 111 . . 2299 796 328 Electromagnetic 7367 | . . 268 . 25 216 647 . 35 . 178 . 137 776 . 347 . 14 257 . 935 . 454 18 551 1563 346 600 Impact . | . . . . . . . . . . . . . . . . . . . . . . . . . . . . Slashing . | . . . . . . . . . . . . . . . . . . . . . . . . . . . . Piercing . | . . . . . . . . . . . . . . . . . . . . . . . . . . . . Highest Corruption 19 | . . . . . 1 15 15 . . 1 1 1 2 . 5 . . . . 6 2 2 8 19 8 6 16 Average Corruption 5 | . . . . . 1 4 7 . . 1 1 1 1 . 2 . . . . 1 1 1 6 8 5 3 11 Corruption Purged 70 | . . . . . 1 2 15 . . 1 . 1 2 . 5 . . . . . . 2 3 18 8 11 1 Effects 316 | . . . . . 1 91 57 . . . . 1 1 . 2 . . . . . 2 1 13 60 34 15 38 Message Errors 71 | . . . . . 1 22 14 . . . . 1 . . 1 . . . . . . . 2 14 7 3 6 Matter Fused 44 | . . . . . . 10 13 . . . . . . . . . . . . . . . 1 10 5 2 3 Heat Flow Errors 24 | . . . . . . 8 5 . . . . . . . . . . . . . . . 2 3 1 1 4 Energy Discharges 33 | . . . . . . 11 12 . . . . . 1 . 1 . . . . . 1 . . 2 2 1 2 Parts Rejected 6 | . . . . . . . . . . . . . . . . . . . . . . . 2 1 . 2 1 Data Loss (minor) 33 | . . . . . . 6 8 . . . . . . . . . . . . . 1 1 4 4 4 2 3 Data Loss (major) 11 | . . . . . . 4 1 . . . . . . . . . . . . . . . . 1 3 . 2 Misfires 7 | . . . . . . 3 . . . . . . . . . . . . . . . . 1 3 . . . Misdirections 15 | . . . . . . 4 4 . . . . . . . . . . . . . . . . 5 . . 2 Targeting Errors 61 | . . . . . . 21 . . . . . . . . . . . . . . . . 1 16 8 4 11 Weapon Failures 11 | . . . . . . 2 . . . . . . . . . . . . . . . . . 1 4 . 4 Overload Shots . | . . . . . . . . . . . . . . . . . . . . . . . . . . . . Overflow Damage 3553 | . . 11 . . 22 119 . . . . . . 11 . 2 . . 1 . 82 . 10 . 39 233 156 2867 Projectiles 264 | . . 5 . . 22 26 . . . . . . . . . . . . . 12 . . . 39 41 77 42 Explosions 3289 | . . 6 . . . 93 . . . . . . 11 . 2 . . 1 . 70 . 10 . . 192 79 2825 Melee . | . . . . . . . . . . . . . . . . . . . . . . . . . . . . Knockbacks 29 | . . . . . 7 . . . . . . . . . . . . . . . . . . 9 5 . 8 Impact . | . . . . . . . . . . . . . . . . . . . . . . . . . . . . Kinetic 23 | . . . . . 5 . . . . . . . . . . . . . . . . . . 9 3 . 6 Secondary 6 | . . . . . 2 . . . . . . . . . . . . . . . . . . . 2 . 2 Self-Inflicted Damage 2005 | . . 65 . . . 305 . 13 . 5 . 3 53 . 25 . 37 . . 108 . 59 . . 92 2 1238 Shots 30 | . . 3 . . . 7 . 1 . 1 . 1 5 . 2 . 1 . . 1 . 2 . . 1 1 4 Rammed 4 | . . . . . . 3 . . . . . . . . . . . . . 1 . . . . . . . Targets Rammed 15 | . . . . . . 8 . . . . . . . . . . . . . 4 . . . . 2 . 1 Kicked 11 | . . . . . . 5 . . . . . . . . . . . . . 3 . . . . 2 . 1 Crushed . | . . . . . . . . . . . . . . . . . . . . . . . . . . . . Highest Temperature 433 | 60 . 184 . 21 433 252 209 288 . 24 . . 54 . 159 6 . 6 6 246 . 5 320 120 414 431 375 Average Temperature 80 | 20 . 62 . 7 154 60 73 111 . 18 . . 23 . 86 4 . 4 4 105 . 5 51 45 134 121 122 Received Heat Transfer 3297 | . . 138 . . 342 987 . 54 . 18 27 48 9 . 63 9 286 22 . 207 . 94 93 30 123 225 522 Effects 11 | . . . . . 6 . . . . . . . . . . . . . . . . . . . 5 . . Shutdowns 1 | . . . . . 1 . . . . . . . . . . . . . . . . . . . . . . Energy Bleed 3 | . . . . . 3 . . . . . . . . . . . . . . . . . . . . . . Interference 5 | . . . . . . . . . . . . . . . . . . . . . . . . . 5 . . Short Circuit 1 | . . . . . 1 . . . . . . . . . . . . . . . . . . . . . . Damage (minor) 1 | . . . . . 1 . . . . . . . . . . . . . . . . . . . . . . Siege Activations . | . . . . . . . . . . . . . . . . . . . . . . . . . . . . Robots Corrupted 13 | . . . . . 1 . . . . 1 . . 2 . . . . 1 . 2 . . . 1 2 2 1 Combat Hostiles 3 | . . . . . 1 . . . . . . . . . . . . . . . . . . . 1 . 1 Parts Fried 52 | . . . . . 2 1 . . . 1 . . 12 . 2 . 3 . . 8 . 2 . 3 13 3 2 Impact Corruptions . | . . . . . . . . . . . . . . . . . . . . . . . . . . . . Robots Melted 3 | . . . . . . . . . . . . . . . . . . . . . . 2 . . . . 1 Combat Hostiles 1 | . . . . . . . . . . . . . . . . . . . . . . . . . . . 1 Parts Melted 27 | 1 . 1 . . . 3 1 . . . 1 . . . . . 3 1 . . . 3 7 2 2 . 2 Heat Transferred 21731 | 1050 . 1207 . 112 346 3261 1350 462 . 222 777 75 . . 222 . 740 111 37 807 . 1603 1431 3012 2164 546 2196 Parts Sabotaged 7 | . . . . . . . . . . . . . . . . . . . . . . . . . . 3 4 Parts Stolen 3 | . . . . . . . . . . . . . 3 . . . . . . . . . . . . . . Parts Stripped . | . . . . . . . . . . . . . . . . . . . . . . . . . . . . Power Chain Reactions 10 | . . . . . 1 3 . . . . . . . . . . . . . . . 3 . . 2 . 1 Missiles Intercepted . | . . . . . . . . . . . . . . . . . . . . . . . . . . . . Alert | -11 -10 -10 -10 -9 -8 -7 -7 -7 -7 -6 -6 -6 -6 -6 -5 -5 -5 -5 -5 -5 -4 -4 -3 -3 -2 -2 -1 ------- Run | Scr Mat Min Exi Min Mat Fac Low Low Zio Pro Fac Low Low Dat Pro Fac Ext Cet Arc Hub Fac Gar Res Qua Res Tes Acc Peak Influence 1673 | 70 94 201 . 70 259 1376 . . . . 125 . . . . 86 825 722 632 1022 480 980 720 344 1130 1089 1673 Initial 652 | . 45 36 . . 27 117 . . . . . . . . . . 42 461 272 196 480 203 551 308 76 598 652 Average 400 | 31 61 92 . 47 113 490 . . . . 37 . . . . 28 301 625 454 209 383 687 568 165 242 778 905 Maximum Alert Level 5 | . . 1 . . 1 4 . . . . . . . . . . 3 3 2 3 2 3 3 1 4 3 5 Low Security (%) 42 | 100 100 98 . 100 86 27 . . . . 100 . . . . 100 44 . . 68 . . . 71 76 . . Level 1 15 | . . 1 . . 13 23 . . . . . . . . . . 26 . 40 27 45 22 . 28 . . . Level 2 19 | . . . . . . 25 . . . . . . . . . . 23 60 59 . 54 24 98 . 6 15 15 Level 3 20 | . . . . . . 18 . . . . . . . . . . 4 39 . 4 . 53 1 . 14 84 65 Level 4 2 | . . . . . . 6 . . . . . . . . . . . . . . . . . . 1 . 17 Level 5 . | . . . . . . . . . . . . . . . . . . . . . . . . . . . 1 High Security . | . . . . . . . . . . . . . . . . . . . . . . . . . . . . Max Security . | . . . . . . . . . . . . . . . . . . . . . . . . . . . . Squads Dispatched 80 | . 1 . . . 2 21 . . . . 2 . . . . 3 4 1 . 4 3 . 3 4 8 10 14 Investigation 15 | . 1 . . . 1 6 . . . . 1 . . . . 1 1 1 . . 1 . 1 . . . 1 Extermination 20 | . . . . . . 4 . . . . . . . . . . . . . 2 2 . 1 2 5 2 2 Reinforcement 20 | . . . . . 1 3 . . . . 1 . . . . 2 3 . . 1 . . . 2 1 3 3 Assault 18 | . . . . . . 4 . . . . . . . . . . . . . 1 . . 1 . 2 5 5 Garrison 7 | . . . . . . 4 . . . . . . . . . . . . . . . . . . . . 3 Intercept . | . . . . . . . . . . . . . . . . . . . . . . . . . . . . Construction Impeded 7 | . . . . . . 1 . . . . . . . . . 1 2 . . . . . . . 1 . 2 Haulers Reinforced 1 | . . . . . . . . . . . . . . . . . . . . . . . . . . 1 . Stealth | -11 -10 -10 -10 -9 -8 -7 -7 -7 -7 -6 -6 -6 -6 -6 -5 -5 -5 -5 -5 -5 -4 -4 -3 -3 -2 -2 -1 --------- Run | Scr Mat Min Exi Min Mat Fac Low Low Zio Pro Fac Low Low Dat Pro Fac Ext Cet Arc Hub Fac Gar Res Qua Res Tes Acc Distress Signals 27 | . . . . . 4 3 . . . 1 1 . 1 . . . . 1 . 2 1 . . 2 1 3 7 Communications Jammed . | . . . . . . . . . . . . . . . . . . . . . . . . . . . . Distress Signals . | . . . . . . . . . . . . . . . . . . . . . . . . . . . . Times Spotted 544 | . . 20 . 8 23 85 6 14 . 3 17 4 6 . 4 2 37 7 25 41 7 29 24 18 36 38 90 Peak Tracking Total 27 | . . 6 . 4 7 9 4 6 . 2 6 1 4 . 4 1 6 5 15 27 4 5 8 4 7 20 23 Tactical Retreats 40 | . . 1 . . 1 8 4 1 . 3 1 . 3 . . . 1 . 1 2 . 2 1 1 2 4 4 Traps | -11 -10 -10 -10 -9 -8 -7 -7 -7 -7 -6 -6 -6 -6 -6 -5 -5 -5 -5 -5 -5 -4 -4 -3 -3 -2 -2 -1 ------- Run | Scr Mat Min Exi Min Mat Fac Low Low Zio Pro Fac Low Low Dat Pro Fac Ext Cet Arc Hub Fac Gar Res Qua Res Tes Acc Traps Triggered 29 | . . . . . 3 10 . . . . . . . . . 1 2 . . . 1 4 1 5 . 1 1 Indirectly 1 | . . . . . . 1 . . . . . . . . . . . . . . . . . . . . . Trap Hack Attempts . | . . . . . . . . . . . . . . . . . . . . . . . . . . . . Triggered . | . . . . . . . . . . . . . . . . . . . . . . . . . . . . Disarmed . | . . . . . . . . . . . . . . . . . . . . . . . . . . . . Reprogrammed . | . . . . . . . . . . . . . . . . . . . . . . . . . . . . Reused 6 | . . . . . . . . . . 6 . . . . . . . . . . . . . . . . . Traps Extracted . | . . . . . . . . . . . . . . . . . . . . . . . . . . . . Installed 11 | . . . . . 1 . . . . 10 . . . . . . . . . . . . . . . . . Triggered 6 | . . . . . . . . . . 6 . . . . . . . . . . . . . . . . . Machines | -11 -10 -10 -10 -9 -8 -7 -7 -7 -7 -6 -6 -6 -6 -6 -5 -5 -5 -5 -5 -5 -4 -4 -3 -3 -2 -2 -1 ---------- Run | Scr Mat Min Exi Min Mat Fac Low Low Zio Pro Fac Low Low Dat Pro Fac Ext Cet Arc Hub Fac Gar Res Qua Res Tes Acc Machines Disabled 70 | . . 2 . . 1 15 . 6 . . 3 . . . . . 6 1 1 17 . 5 . 5 4 3 1 Max in Single Turn 14 | . . 2 . . 1 4 . 6 . . 1 . . . . . 2 . . 14 . 2 . 1 1 1 1 Garrison Access 7 | . . . . . . 3 . . . . . . . . . . . . . 1 1 . . . 1 . 1 Garrison Relay 3 | . . . . . . . . . . . . . . . . . . . . . . 3 . . . . . Phase Generator 1 | . . . . . . . . . . . . . . . . . . . . . . 1 . . . . . Network Hub 2 | . . . . . . . . . . . . . . . . . . . . 2 . . . . . . . Energy Cycler 1 | . . . . . . . . . . . . . . . . . 1 . . . . . . . . . . Machines Sabotaged . | . . . . . . . . . . . . . . . . . . . . . . . . . . . . Garrisons Compromised . | . . . . . . . . . . . . . . . . . . . . . . . . . . . . Overloaded Fab Kills . | . . . . . . . . . . . . . . . . . . . . . . . . . . . . Fab Network Shutdowns . | . . . . . . . . . . . . . . . . . . . . . . . . . . . . Hacking | -11 -10 -10 -10 -9 -8 -7 -7 -7 -7 -6 -6 -6 -6 -6 -5 -5 -5 -5 -5 -5 -4 -4 -3 -3 -2 -2 -1 --------- Run | Scr Mat Min Exi Min Mat Fac Low Low Zio Pro Fac Low Low Dat Pro Fac Ext Cet Arc Hub Fac Gar Res Qua Res Tes Acc Machines Accessed 90 | . 3 1 1 . 4 23 2 . 1 . 3 2 2 3 . 2 4 1 1 7 5 . 1 9 6 7 2 Terminals 49 | . 2 . . . 2 12 . . . . 2 . . . . 1 4 1 . 7 . . 1 8 4 3 2 Fabricators 5 | . . . . . . 2 . . . . 1 . . . . . . . . . . . . . . 2 . Repair Stations 2 | . . . . . . . . . . . . . . . . . . . . . 1 . . . 1 . . Recycling Units 8 | . 1 . . . 1 4 . . . . . . . . . . . . . . 1 . . . 1 . . Scanalyzers 6 | . . . . . 1 1 . . . . . . . . . . . . . . 1 . . 1 . 2 . Garrison Access 7 | . . . . . . 4 . . . . . . . . . 1 . . . . 2 . . . . . . Total Hacks 346 | . 12 1 1 . 14 58 11 . 4 . 8 2 14 28 . 3 10 2 25 17 14 . 5 49 21 37 10 Successful 194 | . 8 1 1 . 11 21 11 . 4 . 3 2 14 28 . 1 4 . 25 7 9 . 3 20 4 14 3 Failed 150 | . 3 . . . 3 37 . . . . 5 . . . . 2 5 2 . 10 5 . 2 29 17 23 7 Catastrophic 32 | . 1 . . . 1 9 . . . . 1 . . . . 1 1 1 . 1 . . 1 6 3 5 1 Database Lockouts 2 | . 1 . . . . . . . . . . . . . . . 1 . . . . . . . . . . Manual 131 | . 8 . 1 . 4 30 . . . . 6 . . . . . 8 1 . 9 4 . 2 35 16 6 1 Terminals 180 | . 11 . . . 5 32 . . . . 5 . . . . 1 10 2 . 17 . . 5 47 17 18 10 Fabricators 16 | . . . . . . 7 . . . . 3 . . . . . . . . . . . . . . 6 . Repair Stations 4 | . . . . . . . . . . . . . . . . . . . . . 3 . . . 1 . . Recycling Units 16 | . 1 . . . 1 7 . . . . . . . . . . . . . . 4 . . . 3 . . Scanalyzers 31 | . . . . . 8 4 . . . . . . . . . . . . . . 4 . . 2 . 13 . Garrison Access 13 | . . . . . . 8 . . . . . . . . . 2 . . . . 3 . . . . . . Terminal Hacks 122 | . 4 1 1 . 1 4 11 . 4 . . 2 14 28 . 1 1 . 25 4 . . 2 12 1 4 2 Record 56 | . . . . . . . 10 . . . . . 13 6 . . . . 25 . . . . 1 . . 1 Part Schematic 17 | . . . . . . 2 . . 4 . . . . 11 . . . . . . . . . . . . . Robot Schematic 8 | . . . . . . . . . . . . . . 8 . . . . . . . . . . . . . Robot Analysis 6 | . 3 . . . . . . . . . . . . . . . 1 . . . . . . . . 2 . Prototype ID Bank 5 | . . . . . 1 . . . . . . . . 3 . . . . . . . . . 1 . . . Open Door 7 | . . 1 . . . . 1 . . . . 2 1 . . 1 . . . . . . . 1 . . . Level Access Points 1 | . . . . . . . . . . . . . . . . . . . . . . . . 1 . . . Branch Access Points 4 | . . . . . . 1 . . . . . . . . . . . . . . . . . . 1 1 1 Terminal Index 1 | . . . . . . . . . . . . . . . . . . . . . . . . 1 . . . Garrison Index 1 | . . . . . . . . . . . . . . . . . . . . . . . . 1 . . . Alert Level 1 | . . . . . . . . . . . . . . . . . . . . . . . . 1 . . . Unreport Threat 4 | . . . . . . . . . . . . . . . . . . . . 1 . . 1 2 . . . Locate Traps 2 | . 1 . . . . . . . . . . . . . . . . . . 1 . . . . . . . Recall Reinforcements 1 | . . . . . . . . . . . . . . . . . . . . 1 . . . . . . . Hauler Manifests 1 | . . . . . . . . . . . . . . . . . . . . . . . . 1 . . . Registered Components 1 | . . . . . . . . . . . . . . . . . . . . . . . 1 . . . . Zone Layout 4 | . . . . . . 1 . . . . . . . . . . . . . 1 . . . 2 . . . EX-Prototype ID Bank 1 | . . . 1 . . . . . . . . . . . . . . . . . . . . . . . . Protovariant Controls 1 | . . . . . . . . . . . . . . . . . . . . . . . . . . 1 . Fabricator Hacks 5 | . . . . . . 3 . . . . 2 . . . . . . . . . . . . . . . . Load Schematic 3 | . . . . . . 2 . . . . 1 . . . . . . . . . . . . . . . . Build 2 | . . . . . . 1 . . . . 1 . . . . . . . . . . . . . . . . Repair Station Hacks 3 | . . . . . . . . . . . . . . . . . . . . . 3 . . . . . . Scan Component 1 | . . . . . . . . . . . . . . . . . . . . . 1 . . . . . . Repair 1 | . . . . . . . . . . . . . . . . . . . . . 1 . . . . . . Refit 1 | . . . . . . . . . . . . . . . . . . . . . 1 . . . . . . Recycling Unit Hacks 1 | . . . . . . 1 . . . . . . . . . . . . . . . . . . . . . Retrieve Matter 1 | . . . . . . 1 . . . . . . . . . . . . . . . . . . . . . Scanalyzer 21 | . . . . . 8 4 . . . . . . . . . . . . . . 1 . . . . 8 . Insert Component 15 | . . . . . 4 2 . . . . . . . . . . . . . . 1 . . . . 8 . Analyze 6 | . . . . . 4 2 . . . . . . . . . . . . . . . . . . . . . Garrison Access Hacks 4 | . . . . . . 2 . . . . . . . . . . . . . . 2 . . . . . . Unlock Access 1 | . . . . . . . . . . . . . . . . . . . . . 1 . . . . . . Seal Access 3 | . . . . . . 2 . . . . . . . . . . . . . . 1 . . . . . . Unauthorized Hacks 38 | . 4 . . . 2 7 . . . . 1 . . . . . 3 . . 3 3 . 1 8 3 2 1 Terminals 27 | . 3 . . . 1 4 . . . . . . . . . . 3 . . 3 . . 1 7 2 2 1 Track 3 | . . . . . . . . . . . . . . . . . . . . . . . . 3 . . . Assimilate 3 | . . . . . . . . . . . . . . . . . . . . 1 . . . . 1 1 . Botnet 16 | . 2 . . . 1 2 . . . . . . . . . . 2 . . 2 . . 1 3 1 1 1 Disrupt 1 | . . . . . . 1 . . . . . . . . . . . . . . . . . . . . . Operators 4 | . 1 . . . . 1 . . . . . . . . . . 1 . . . . . . 1 . . . Fabricators 1 | . . . . . . . . . . . 1 . . . . . . . . . . . . . . . . Prioritize 1 | . . . . . . . . . . . 1 . . . . . . . . . . . . . . . . Repair Stations . | . . . . . . . . . . . . . . . . . . . . . . . . . . . . Recycling Units 8 | . 1 . . . 1 2 . . . . . . . . . . . . . . 3 . . . 1 . . Monitor 1 | . . . . . . . . . . . . . . . . . . . . . 1 . . . . . . Reject 3 | . . . . . . 1 . . . . . . . . . . . . . . 1 . . . 1 . . Recyclers 2 | . . . . . . 1 . . . . . . . . . . . . . . 1 . . . . . . Tunnel 2 | . 1 . . . 1 . . . . . . . . . . . . . . . . . . . . . . Scanalyzers 1 | . . . . . . . . . . . . . . . . . . . . . . . . 1 . . . Researchers 1 | . . . . . . . . . . . . . . . . . . . . . . . . 1 . . . Garrison Access 1 | . . . . . . 1 . . . . . . . . . . . . . . . . . . . . . Jam 1 | . . . . . . 1 . . . . . . . . . . . . . . . . . . . . . Data Cores Recovered . | . . . . . . . . . . . . . . . . . . . . . . . . . . . . Used . | . . . . . . . . . . . . . . . . . . . . . . . . . . . . Hacking Detections 66 | . 2 . . . 3 20 . . . . 2 . . . . 1 4 1 . 7 2 . 1 8 6 7 2 Full Trace Events 9 | . . . . . . 5 . . . . 1 . . . . . 1 1 . . 1 . . . . . . Feedback Events 1 | . . . . . . . . . . . 1 . . . . . . . . . . . . . . . . Corruption 1 | . . . . . . . . . . . 1 . . . . . . . . . . . . . . . . Feedback Blocked . | . . . . . . . . . . . . . . . . . . . . . . . . . . . . Robot Schematics Acquired 8 | . . . . . . . . . . . . . . 8 . . . . . . . . . . . . . Robots Built . | . . . . . . . . . . . . . . . . . . . . . . . . . . . . Matter . | . . . . . . . . . . . . . . . . . . . . . . . . . . . . Time . | . . . . . . . . . . . . . . . . . . . . . . . . . . . . Total Robot Build Rating . | . . . . . . . . . . . . . . . . . . . . . . . . . . . . Part Schematics Acquired 33 | . . . . . 4 4 . . 4 . . . . 11 . . . . . . . . . 10 . . . Parts Built 3 | . . . . . . 1 . . . . 2 . . . . . . . . . . . . . . . . Matter 314 | . . . . . . 168 . . . . 146 . . . . . . . . . . . . . . . . Time 115 | . . . . . . 42 . . . . 73 . . . . . . . . . . . . . . . . Total Part Build Rating 10 | . . . . . . 4 . . . . 6 . . . . . . . . . . . . . . . . Parts Repaired 1 | . . . . . . . . . . . . . . . . . . . . . 1 . . . . . . Time 22 | . . . . . . . . . . . . . . . . . . . . . 22 . . . . . . Parts Recycled . | . . . . . . . . . . . . . . . . . . . . . . . . . . . . Recycled Matter . | . . . . . . . . . . . . . . . . . . . . . . . . . . . . Retrieved Matter . | . . . . . . . . . . . . . . . . . . . . . . . . . . . . Retrieved Components . | . . . . . . . . . . . . . . . . . . . . . . . . . . . . Parts Scanalyzed 8 | . . . . . 4 2 . . . . . . . . . . . . . . 1 . . . . 1 . Part Schematics Acquired 6 | . . . . . 4 2 . . . . . . . . . . . . . . . . . . . . . Parts Damaged 1 | . . . . . . 1 . . . . . . . . . . . . . . . . . . . . . Bothacking | -11 -10 -10 -10 -9 -8 -7 -7 -7 -7 -6 -6 -6 -6 -6 -5 -5 -5 -5 -5 -5 -4 -4 -3 -3 -2 -2 -1 ------------ Run | Scr Mat Min Exi Min Mat Fac Low Low Zio Pro Fac Low Low Dat Pro Fac Ext Cet Arc Hub Fac Gar Res Qua Res Tes Acc Used RIF Installer 1 | . . . . . . . . . . . . . . . . . . . . . . 1 . . . . . Robots Hacked 17 | . . . 4 . . . . . . . . . . . . . . . . . . 7 . 6 . . . Non-combat 8 | . . . 3 . . . . . . . . . . . . . . . . . . . . 5 . . . Combat 9 | . . . 1 . . . . . . . . . . . . . . . . . . 7 . 1 . . . Robot Hacks Applied 19 | . . . 4 . . . . . . . . . . . . . . . . . . 7 . 8 . . . parse_system 4 | . . . 4 . . . . . . . . . . . . . . . . . . . . . . . . deconstruct_machine 1 | . . . . . . . . . . . . . . . . . . . . . . . . 1 . . . map_walls 3 | . . . . . . . . . . . . . . . . . . . . . . . . 3 . . . drop_inventory 1 | . . . . . . . . . . . . . . . . . . . . . . . . 1 . . . locate_prototypes 1 | . . . . . . . . . . . . . . . . . . . . . . . . 1 . . . report_schematics 1 | . . . . . . . . . . . . . . . . . . . . . . . . 1 . . . report_analyses 1 | . . . . . . . . . . . . . . . . . . . . . . . . 1 . . . reboot_system 1 | . . . . . . . . . . . . . . . . . . . . . . 1 . . . . . formatsys_high 6 | . . . . . . . . . . . . . . . . . . . . . . 6 . . . . . Relay Couplers Released 17 | . . . . . . . . . . . . . . . . . . . . . . 12 . . 2 . 3 Machine Destruction 17 | . . . . . . . . . . . . . . . . . . . . . . 12 . . 2 . 3 Attached 5 | . . . . . . . . . . . . . . . . . . . . . . 4 . 1 . . . Robots Rewired 16 | . . . . . . . . . . . . . 1 . . . 15 . . . . . . . . . . Allies Hacked 1 | . . . . . . . . . . . . . . . . . . . . . . . 1 . . . . Hacks Repelled . | . . . . . . . . . . . . . . . . . . . . . . . . . . . . Allies | -11 -10 -10 -10 -9 -8 -7 -7 -7 -7 -6 -6 -6 -6 -6 -5 -5 -5 -5 -5 -5 -4 -4 -3 -3 -2 -2 -1 -------- Run | Scr Mat Min Exi Min Mat Fac Low Low Zio Pro Fac Low Low Dat Pro Fac Ext Cet Arc Hub Fac Gar Res Qua Res Tes Acc Total Allies 80 | . . 4 . . . . . . . . . . 1 . 2 . 25 5 . . . 6 . . 1 . 36 Largest Group 20 | . . 3 2 2 . . . . . . . . 1 1 2 2 13 7 5 . . 5 5 . 1 . 20 Highest-Rated Group 633 | . . 40 24 24 . . . . . . . . 58 58 193 193 490 633 412 . . 244 244 . 26 . 273 Highest-Rated Ally 156 | . . 31 16 16 . . . . . . . . 58 58 99 99 156 134 99 . . 56 56 . 26 . 69 Total Orders 17 | . . . 2 . . . . . . . . . 2 1 . . . . . . 1 5 . . 4 2 . STAY 9 | . . . 1 . . . . . . . . . 1 1 . . . . . . . 4 . . 2 . . FOLLOW 4 | . . . 1 . . . . . . . . . 1 . . . . . . . . 1 . . 1 . . EXPLORE 4 | . . . . . . . . . . . . . . . . . . . . . 1 . . . 1 2 . Ally Attacks 492 | . . 15 . 12 . . . . . . . . . . 3 5 137 44 37 . . 18 28 . . . 193 Total Damage 13393 | . . 162 . 129 . . . . . . . . . . 93 86 4057 1213 1942 . . 540 903 . . . 4268 Kills 84 | . . 3 . 1 . . . . . . . . . . 1 2 29 6 13 . . 2 5 . . . 22 Allies Corrupted 1 | . . . . . . . . . . . . . . . 1 . . . . . . . . . . . . Allies Melted 1 | . . . . . . . . . . . . . . . . . . . 1 . . . . . . . . Field Lobotomies 5 | . . . . . . . . . . . . . . . . . . . . . . . . . . . 5 Intel | -11 -10 -10 -10 -9 -8 -7 -7 -7 -7 -6 -6 -6 -6 -6 -5 -5 -5 -5 -5 -5 -4 -4 -3 -3 -2 -2 -1 ------- Run | Scr Mat Min Exi Min Mat Fac Low Low Zio Pro Fac Low Low Dat Pro Fac Ext Cet Arc Hub Fac Gar Res Qua Res Tes Acc Robot Analysis Total 6 | . 3 . . . . . . . . . . . . . . . 1 . . . . . . . . 2 . Derelict Logs Recovered 10 | . . 1 . . . . 2 2 1 2 . . 1 . 1 . . . . . . . . . . . . Drone Launches 7 | . . . . . . . . . . . . . . . . . . . . . 2 . . . 2 3 . Drone Recoveries . | . . . . . . . . . . . . . . . . . . . . . . . . . . . . Exploration | -11 -10 -10 -10 -9 -8 -7 -7 -7 -7 -6 -6 -6 -6 -6 -5 -5 -5 -5 -5 -5 -4 -4 -3 -3 -2 -2 -1 ------------- Run | Scr Mat Min Exi Min Mat Fac Low Low Zio Pro Fac Low Low Dat Pro Fac Ext Cet Arc Hub Fac Gar Res Qua Res Tes Acc Turns Passed 43074 | 375 110 1231 762 275 783 4504 4375 2291 1143 5389 675 3112 4252 122 2125 351 1331 268 106 670 738 2397 719 1403 1693 798 1076 Spaces Moved 25240 | 161 90 782 568 114 422 2893 1769 1284 927 2465 423 2140 2839 86 1299 240 792 99 65 389 437 1469 392 931 977 470 717 Core 20 | 15 . . . . . . . . . . . . . . . . . . . . . . . . . . 5 Treads 38 | . . . . . . 35 . . . . . . . . 3 . . . . . . . . . . . . Legs 22273 | 146 90 782 568 114 422 2800 144 1284 927 2465 423 2140 2015 . 1296 240 792 99 65 389 437 1469 392 931 977 470 396 Wheels 2593 | . . . . . . 58 1625 . . . . . 824 86 . . . . . . . . . . . . . Hover . | . . . . . . . . . . . . . . . . . . . . . . . . . . . . Flight 316 | . . . . . . . . . . . . . . . . . . . . . . . . . . . 316 Fastest Speed 28 | 50 120 120 120 120 110 60 110 123 123 123 123 115 120 140 125 125 120 120 105 90 112 120 118 112 111 116 28 Average Speed 123 | 113 120 120 130 123 123 116 111 127 123 123 123 124 137 140 149 125 120 139 152 109 133 129 140 114 114 116 80 Slowest Speed 200 | 120 120 120 150 150 150 200 123 150 123 123 123 125 160 140 200 125 152 150 180 143 150 150 150 142 116 150 150 Overloaded Moves 103 | . . . . . . 83 . . . . . . . . . . . . . 20 . . . . . . . Propulsion Burnouts . | . . . . . . . . . . . . . . . . . . . . . . . . . . . . Robots Hopped 8 | . . . . . . . . . . . . . . . . . . . . . . . . . . . 8 Cave-ins Triggered . | . . . . . . . . . . . . . . . . . . . . . . . . . . . . Exploration Rate (%) 57 | 7 20 97 71 25 38 74 99 97 83 89 15 99 98 68 93 9 87 48 78 48 14 93 10 79 30 36 16 Regions Visited 27 Branch Regions 17 Pre-discovered Areas 5 | . 1 . . . 1 . . . 1 . . . 1 1 . . . . . . . . . . . . . Known Exits Taken 20 | . . . . . . 1 1 1 1 1 1 1 1 1 1 1 1 1 1 1 1 . 1 1 1 1 . Unknown Exits Taken 6 | 1 1 1 1 1 1 . . . . . . . . . . . . . . . . . . . . . . Scrap Searched 30 | . . 3 . 1 . . 4 4 3 2 . 2 8 . 3 . . . . . . . . . . . . Spaces Dug 102 | . . . . . . 22 . . . . . . . . . 6 . . . 2 1 . 7 10 35 6 13 Terrain Destroyed 1934 | . . 54 . . 16 115 . 48 . 59 . 7 . . . 6 4 4 1 315 2 113 11 23 290 111 755 Melee . | . . . . . . . . . . . . . . . . . . . . . . . . . . . . Projectile 228 | . . . . . 13 23 . . . . . 7 . . . 6 2 4 1 10 2 11 11 23 54 20 41 AOE 1706 | . . 54 . . 3 92 . 48 . 59 . . . . . . 2 . . 305 . 102 . . 236 91 714 Terrain Rammed . | . . . . . . . . . . . . . . . . . . . . . . . . . . . . Walls Destroyed . | . . . . . . . . . . . . . . . . . . . . . . . . . . . . Machines Disabled . | . . . . . . . . . . . . . . . . . . . . . . . . . . . . Actions | -11 -10 -10 -10 -9 -8 -7 -7 -7 -7 -6 -6 -6 -6 -6 -5 -5 -5 -5 -5 -5 -4 -4 -3 -3 -2 -2 -1 --------- Run | Scr Mat Min Exi Min Mat Fac Low Low Zio Pro Fac Low Low Dat Pro Fac Ext Cet Arc Hub Fac Gar Res Qua Res Tes Acc Total 35187 | 241 92 959 588 218 583 3630 4147 1915 930 4804 517 2565 3092 88 1460 272 1109 209 70 574 592 1838 496 1134 1383 672 1009 Wait 7248 | . . 57 . 74 48 329 2304 603 . 2281 46 349 66 3 113 11 53 84 . 114 101 180 22 46 215 103 46 Move 25203 | 160 89 781 567 113 421 2893 1768 1283 926 2464 422 2139 2838 85 1298 239 791 98 64 388 437 1468 391 930 977 469 704 Hop 5 | . . . . . . . . . . . . . . . . . . . . . . . . . . . 5 Pick Up 363 | 10 2 9 8 4 14 35 19 8 2 15 4 20 37 . 13 . 14 3 . 15 13 23 11 15 10 21 38 Fast Attach 156 | . . 4 1 2 2 13 1 . . . 4 3 4 . 3 2 10 3 . 1 10 13 11 19 30 2 18 Attach 227 | 7 . 2 . 3 13 24 7 . 1 1 2 7 13 . 5 . 10 1 4 13 5 17 5 14 8 25 40 Detach 40 | . . . . . 2 5 2 . . . . 1 2 . . . . 1 1 1 1 3 . 3 2 8 8 Swap 223 | . . 16 4 . 6 75 5 2 . 3 8 10 5 . 6 1 16 1 . 4 . 14 10 10 16 5 6 Drop 347 | . 1 17 4 4 10 35 16 8 1 14 4 17 35 . 10 2 26 7 . 4 11 22 16 25 35 10 13 Fire 1190 | 64 . 73 . 18 66 208 25 11 . 16 27 19 89 . 12 17 53 11 1 30 14 86 30 72 89 29 130 Melee 4 | . . . 4 . . . . . . . . . . . . . . . . . . . . . . . . Ram . | . . . . . . . . . . . . . . . . . . . . . . . . . . . . Kick 13 | . . . . . . 7 . . . . . . . . . . . . . 4 . . . . 1 . 1 Crush . | . . . . . . . . . . . . . . . . . . . . . . . . . . . . Escape Stasis 26 | . . . . . . 6 . . . . . . . . . . 10 . . . . 10 . . . . . Rewire 131 | . . . . . . . . . . . . . 3 . . . 126 . . . . 2 . . . . . Trap 11 | . . . . . 1 . . . . 10 . . . . . . . . . . . . . . . . . Miscellaneous . | . . . . . . . . . . . . . . . . . . . . . . . . . . . . Route ------- -11/Scrapyard -10/Materials -10/Mines (discovered 3 exits: *Mat x2 / *Exi) -10/Exiles -9/Mines -8/Materials -7/Factory (discovered 6 exits: *Fac x4 / *Low x2) -7/Lower Caves -7/Lower Caves (discovered 2 exits: *Fac / *Zio) -7/Zion -6/Proximity Caves -6/Factory (discovered 2 exits: Fac / *Low) -6/Lower Caves -6/Lower Caves (discovered 2 exits: *Fac / *Dat) -6/Data Miner -5/Proximity Caves -5/Factory (discovered 4 exits: *Upp x2 / *Ext x2) -5/Extension (discovered 2 exits: *Fac / *Cet) -5/Cetus -5/Archives -5/Hub_04(d) -4/Factory -4/Garrison (discovered 3 exits: *Res x3) -3/Research (discovered 2 exits: Arm / *Qua) -3/Quarantine -2/Research (discovered 3 exits: *Acc / *Tes x2) -2/Testing -1/Access (discovered 1 exit: Com) History --------- Turn | Location | Event 6 | -11/Scrapyard | Discovered new exit (range 15) 376 | -11/Scrapyard | Entered Materials 377 | -10/Materials | Build established: Mutant 433 | -10/Materials | Discovered new exit (range 16) 440 | -10/Materials | Central database locked down 486 | -10/Materials | Entered Mines 527 | -10/Mines | Met a Derelict who couldn't figure out how to use a Trap Extractor 725 | -10/Mines | Received a Rocket Launcher from a helpful Derelict 784 | -10/Mines | Deemed a non-threat by the Exiles lab entrance 784 | -10/Mines | Discovered new exit (range 5) 891 | -10/Mines | Excavation squad dispatched 891 | -10/Mines | A large section of the Mines collapsed 1002 | -10/Mines | Discovered new exit (range 14) 1008 | -10/Mines | Build established: Scavenger-Mutant 1019 | -10/Mines | Destroyed 7 combat bots 1035 | -10/Mines | Received a Mining Laser from a helpful Derelict 1395 | -10/Mines | Assisted by bots powering up and referring to "LRC-V3" 1429 | -10/Mines | Identified exit to Materials 1483 | -10/Mines | Joined a pair of Derelicts in attacking an 0b10 outpost 1717 | -10/Mines | Entered Exiles 1717 | -10/Exiles | Accompanied by 2 allies 1750 | -10/Exiles | Met 8R-AWN 1773 | -10/Exiles | Met EX-HEX 1814 | -10/Exiles | Met EX-BIN 1834 | -10/Exiles | Aligned with FarCom system 1835 | -10/Exiles | Given EX-Vault access code 1863 | -10/Exiles | Opened EX-Vault 1890 | -10/Exiles | Warned to stay clear of 0b10 Research branches 1923 | -10/Exiles | Met EX-DEC 2181 | -10/Exiles | Found Potential Leg 2184 | -10/Exiles | Found Potential Leg 2189 | -10/Exiles | Found XL Autogun Array 2192 | -10/Exiles | Found Field Lobotomy Kit 2460 | -10/Exiles | Discovered new exit (range 12) 2479 | -10/Exiles | Stole three prototypes: Potential Leg, XL Autogun Array, Field Lobotomy Kit 2479 | -10/Exiles | Entered Mines 2479 | -9/Mines | Accompanied by 2 allies 2529 | -9/Mines | Assembled infested the area 2534 | -9/Mines | Assisted by a Guerilla fighting off Assembled 2534 | -9/Mines | Found a hidden stash of uninstalled traps 2619 | -9/Mines | Discovered new exit (range 9) 2754 | -9/Mines | Entered Materials 2754 | -8/Materials | Evolved 4 slots: Propulsion x1, Utility x2, Weapon x1 3500 | -8/Materials | Discovered new exit (range 15) 3537 | -8/Materials | Entered Factory 3537 | -7/Factory | Evolved 2 slots: Utility x1, Weapon x1 3539 | -7/Factory | FarCom data flow suspended 3778 | -7/Factory | Discovered new exit (range 15) 3812 | -7/Factory | Garrison activated, responded to threat 4125 | -7/Factory | Build established: Scavenger-Skirmisher 4941 | -7/Factory | Discovered new exit (range 3) 4997 | -7/Factory | Fabricated Lrn. Sensor Array (x1) 5008 | -7/Factory | Identified exit to Factory 6165 | -7/Factory | Discovered exit to Factory (range 12) 6426 | -7/Factory | Build established: Mutant 6737 | -7/Factory | First assault squad dispatched 6929 | -7/Factory | Garrison activated, responded to threat 6998 | -7/Factory | Lost 4 parts (1p3w) 7056 | -7/Factory | System corruption reached 10% 7320 | -7/Factory | Discovered exit to Factory (range 14) 7694 | -7/Factory | Core integrity fell below 50% 7800 | -7/Factory | Lost 5 parts (1n4w) 7867 | -7/Factory | Lost 4 parts (1p2n1w) 8015 | -7/Factory | Identified exit to Lower Caves 8041 | -7/Factory | Entered Lower Caves 8179 | -7/Lower Caves | Build established: Scavenger-Mutant 8336 | -7/Lower Caves | Learned 4 Factory zone layouts 10260 | -7/Lower Caves | Learned location of 1 exit from Research 10260 | -7/Lower Caves | Learned Extension trap positions 10260 | -7/Lower Caves | Learned Extension emergency access door positions 10260 | -7/Lower Caves | Learned Factory terminal intel 10260 | -7/Lower Caves | Learned Armory terminal intel 10260 | -7/Lower Caves | Learned Research garrison access intel 10641 | -7/Lower Caves | Build established: Mutant 11899 | -7/Lower Caves | Discovered new exit (range 8) 11906 | -7/Lower Caves | Identified exit to Lower Caves 12416 | -7/Lower Caves | Entered another Lower Caves area 12531 | -7/Lower Caves | Build established: Scavenger-Skirmisher 12622 | -7/Lower Caves | Discovered exit to Factory (range 3) 13463 | -7/Lower Caves | Build established: Scavenger-Mutant 13608 | -7/Lower Caves | Learned Factory emergency access door positions 13685 | -7/Lower Caves | Discovered new exit (range 3) 13690 | -7/Lower Caves | Identified exit to Zion 13751 | -7/Lower Caves | Encountered a Warlord checkpoint 13851 | -7/Lower Caves | Attracted the attention of an 0b10 checkpoint 14707 | -7/Lower Caves | Entered Zion 14779 | -7/Zion | Discovered new exit (range 16) 15092 | -7/Zion | Learned location of 1 exit from Factory 15295 | -7/Zion | Learned location of Armory (-3) 15304 | -7/Zion | Given the Hacking Drone Bay 15468 | -7/Zion | Received a hallucinogenic algorithm 15685 | -7/Zion | Found Prototype Device 15849 | -7/Zion | Identified exit to Proximity Caves 15850 | -7/Zion | Entered Proximity Caves 16084 | -6/Proximity Caves | Learned 4 Factory zone layouts 17652 | -6/Proximity Caves | Discovered exit to Factory (range 15) 18635 | -6/Proximity Caves | Learned Factory emergency access door positions 21239 | -6/Proximity Caves | Entered Factory 21239 | -6/Factory | Evolved 2 slots: Propulsion x1, Utility x1 21240 | -6/Factory | Identified exit to Lower Caves 21241 | -6/Factory | Identified exit to Factory 21243 | -6/Factory | Loaded intel: 20 terminal locations 21825 | -6/Factory | Fabricated Adv. Signal Interpreter (x2) 21914 | -6/Factory | Entered Lower Caves 21936 | -6/Lower Caves | Build established: Scavenger-Skirmisher 22267 | -6/Lower Caves | Attracted the attention of an 0b10 checkpoint 22558 | -6/Lower Caves | Build established: Scavenger-Mutant 22589 | -6/Lower Caves | Discovered new exit (range 12) 23660 | -6/Lower Caves | Build established: Scavenger-Skirmisher 24133 | -6/Lower Caves | Found Prototype Device 24133 | -6/Lower Caves | Identified Heart of Steel 24325 | -6/Lower Caves | Build established: Scavenger-Mutant 25024 | -6/Lower Caves | Identified exit to Lower Caves 25026 | -6/Lower Caves | Entered another Lower Caves area 25098 | -6/Lower Caves | Discovered exit to Factory (range 12) 25620 | -6/Lower Caves | Learned location of 1 exit from Factory 25620 | -6/Lower Caves | Learned Armory trap positions 25620 | -6/Lower Caves | Learned Factory emergency access door positions 25620 | -6/Lower Caves | Learned Extension emergency access door positions 25620 | -6/Lower Caves | Learned Research stockpile data 25620 | -6/Lower Caves | Learned Extension stockpile data 25620 | -6/Lower Caves | Learned Factory garrison access intel 25620 | -6/Lower Caves | Learned Research garrison access intel 25620 | -6/Lower Caves | Learned Extension garrison access intel 26008 | -6/Lower Caves | Learned 4 Factory zone layouts 26706 | -6/Lower Caves | Spotted 8J-T0I(f) 26707 | -6/Lower Caves | Encountered a Master Thief 26707 | -6/Lower Caves | Spotted 0Y-EGJ(f) 26708 | -6/Lower Caves | Encountered a Master Thief 26708 | -6/Lower Caves | Spotted OX-UCH(f) 26709 | -6/Lower Caves | Encountered a Master Thief 26710 | -6/Lower Caves | Spotted JT-M7S(f) 26711 | -6/Lower Caves | Encountered a Master Thief 26712 | -6/Lower Caves | Prototype Device stolen by Master Thief 26713 | -6/Lower Caves | Myomer Leg stolen by Master Thief 26713 | -6/Lower Caves | Myomer Leg stolen by Master Thief 26736 | -6/Lower Caves | Destroyed 8J-T0I(f) 26740 | -6/Lower Caves | Discovered new exit (range 10) 27414 | -6/Lower Caves | Build established: Derelict-Skirmisher 27465 | -6/Lower Caves | Identified exit to Data Miner 28527 | -6/Lower Caves | Build established: Scavenger-Gunner 28979 | -6/Lower Caves | Build established: Scavenger-Mutant 29278 | -6/Lower Caves | Entered Data Miner 29278 | -6/Data Miner | Accompanied by 1 ally 29278 | -6/Data Miner | Discovered new exit (range 7) 29302 | -6/Data Miner | Identified exit to Proximity Caves 29316 | -6/Data Miner | Build established: Derelict-Skirmisher 29321 | -6/Data Miner | Met Data Miner 29346 | -6/Data Miner | Learned location of Section 7 (-2) 29346 | -6/Data Miner | Acquired the access code to Warlord's prototype stash 29365 | -6/Data Miner | Received God Mode back door access code from Data Miner 29400 | -6/Data Miner | Entered Proximity Caves 29400 | -5/Proximity Caves | Accompanied by 1 ally 30027 | -5/Proximity Caves | Build established: Derelict-Mutant 30906 | -5/Proximity Caves | Heart of Steel transformed into Warbot 31260 | -5/Proximity Caves | Escorted by Enhanced Grunt 31367 | -5/Proximity Caves | Discovered exit to Factory (range 6) 31385 | -5/Proximity Caves | Learned Factory terminal intel 31504 | -5/Proximity Caves | Build established: Scavenger-Mutant 31525 | -5/Proximity Caves | Entered Factory 31525 | -5/Factory | Accompanied by 2 allies (Warbot) 31525 | -5/Factory | Evolved 2 slots: Power x1, Utility x1 31526 | -5/Factory | Identified exit to Extension 31527 | -5/Factory | Identified exit to Upper Caves 31530 | -5/Factory | Loaded intel: 21 terminal locations 31531 | -5/Factory | Loaded intel: 4 garrison access locations 31743 | -5/Factory | Discovered exit to Upper Caves (range 3) 31852 | -5/Factory | Incoming investigation squad redirected 31876 | -5/Factory | Entered Extension 31876 | -5/Extension | Accompanied by 2 allies (Warbot) 31877 | -5/Extension | Loaded intel: 21 trap records 32124 | -5/Extension | Rescued a captive Derelict 32133 | -5/Extension | Rescued a captive Derelict 32157 | -5/Extension | Rescued a captive Derelict 32158 | -5/Extension | Rescued a captive Derelict 32205 | -5/Extension | Rescued a captive Derelict 32213 | -5/Extension | Build established: Scavenger-Skirmisher 32248 | -5/Extension | Central database locked down 32272 | -5/Extension | Rescued a captive Derelict 32273 | -5/Extension | Rescued a captive Derelict 32548 | -5/Extension | Disrupted transfer network 32666 | -5/Extension | Spotted B-75 Beast 32670 | -5/Extension | Destroyed B-75 Beast 32677 | -5/Extension | Spotted B-75 Beast 32692 | -5/Extension | Destroyed B-75 Beast 32818 | -5/Extension | Rescued A7 32889 | -5/Extension | Rescued a captive Derelict 32944 | -5/Extension | Rescued a captive Derelict 32956 | -5/Extension | Energy Cycler disabled 33154 | -5/Extension | Discovered new exit (range 10) 33155 | -5/Extension | Discovered new exit (range 6) 33199 | -5/Extension | Identified exit to Cetus 33207 | -5/Extension | Entered Cetus 33207 | -5/Cetus | Accompanied by 5 allies (incl. A7, Warbot) 33212 | -5/Cetus | Acquired a Cetus Manufacturing Module code from A7 33224 | -5/Cetus | Spotted Cetus Guard 33224 | -5/Cetus | Spotted Cetus Guard 33226 | -5/Cetus | Spotted Cetus Guard 33228 | -5/Cetus | Destroyed Cetus Guard 33228 | -5/Cetus | Spotted Cetus Guard 33236 | -5/Cetus | Allies destroyed Cetus Guard 33245 | -5/Cetus | Allies destroyed Cetus Guard 33246 | -5/Cetus | Allies destroyed Cetus Guard 33321 | -5/Cetus | Started Cetus Manufacturing Module 33346 | -5/Cetus | Manufactured an Enhanced Grunt 33361 | -5/Cetus | Discovered new exit (range 16) 33371 | -5/Cetus | Manufactured an Enhanced Grunt 33390 | -5/Cetus | Identified exit to Archives 33396 | -5/Cetus | Manufactured an Enhanced Grunt 33421 | -5/Cetus | Manufactured an Enhanced Grunt 33446 | -5/Cetus | Manufactured an Enhanced Grunt 33475 | -5/Cetus | Entered Archives 33475 | -5/Archives | Accompanied by 6 allies (incl. A7, Warbot) 33495 | -5/Archives | Met Zhirov 33501 | -5/Archives | Reinforcements dispatched to Archives 33502 | -5/Archives | Unable to access archive contents 33526 | -5/Archives | Read partially decrypted archive contents 33533 | -5/Archives | Discovered new exit (range 16) 33545 | -5/Archives | Unable to access archive contents 33546 | -5/Archives | Reinforcements dispatched to Archives 33547 | -5/Archives | Build established: Scavenger-Tank 33548 | -5/Archives | Zhirov warped through subspace 33566 | -5/Archives | Zhirov detonated Archives 33575 | -5/Archives | Identified exit to Hub_04(d) 33581 | -5/Archives | Entered Hub_04(d) 33597 | -5/Hub_04(d) | Lost 12 parts (1p3n4u4w) 34154 | -5/Hub_04(d) | Build established: Scavenger-Skirmisher 34222 | -5/Hub_04(d) | Network Hub disabled 34222 | -5/Hub_04(d) | Network Hub disabled 34228 | -5/Hub_04(d) | Spotted Lightning 34229 | -5/Hub_04(d) | Discovered new exit (range 14) 34229 | -5/Hub_04(d) | Spotted Lightning 34229 | -5/Hub_04(d) | Spotted Lightning 34229 | -5/Hub_04(d) | Spotted Lightning 34229 | -5/Hub_04(d) | Spotted Lightning 34229 | -5/Hub_04(d) | Spotted Lightning 34229 | -5/Hub_04(d) | Spotted Lightning 34241 | -5/Hub_04(d) | Spotted Lightning 34245 | -5/Hub_04(d) | Spotted Lightning 34245 | -5/Hub_04(d) | Spotted Lightning 34245 | -5/Hub_04(d) | Spotted Lightning 34245 | -5/Hub_04(d) | Spotted Lightning 34248 | -5/Hub_04(d) | Core integrity fell below 50% 34250 | -5/Hub_04(d) | Identified exit to Factory 34251 | -5/Hub_04(d) | Entered Factory 34251 | -4/Factory | Evolved 2 slots: Power x1, Utility x1 34280 | -4/Factory | Lost 5 parts (1p1n3w) 34503 | -4/Factory | Lost 5 parts (2n1u2w) 34619 | -4/Factory | Repaired Lrn. Sensor Array 34823 | -4/Factory | Incoming investigation squad redirected 34989 | -4/Factory | Identified exit to Garrison 34989 | -4/Factory | Entered Garrison 34997 | -4/Garrison | Installed Relay Interface Framework 35074 | -4/Garrison | Triggered checkpoint 35088 | -4/Garrison | Garrison Relay disabled 35404 | -4/Garrison | Triggered checkpoint 35744 | -4/Garrison | Discovered new exit (range 14) 35758 | -4/Garrison | Identified exit to Research 35790 | -4/Garrison | Triggered checkpoint 35806 | -4/Garrison | Garrison Relay disabled 35849 | -4/Garrison | Triggered checkpoint 36074 | -4/Garrison | Discovered exit to Research (range 14) 36109 | -4/Garrison | Phase Generator disabled 36428 | -4/Garrison | Triggered checkpoint 36457 | -4/Garrison | Build established: Scavenger-Mutant 36709 | -4/Garrison | Discovered exit to Research (range 5) 36734 | -4/Garrison | Triggered checkpoint 36815 | -4/Garrison | Garrison Relay disabled 36816 | -4/Garrison | Lost 3 parts (3w) 37183 | -4/Garrison | Build established: Scavenger-Skirmisher 37386 | -4/Garrison | Entered Research 37386 | -3/Research | Accompanied by 5 allies 37386 | -3/Research | Evolved 2 slots: Propulsion x1, Weapon x1 37387 | -3/Research | Identified exit to Armory 37388 | -3/Research | Identified exit to Quarantine 37390 | -3/Research | Loaded intel: 4 garrison access locations 37531 | -3/Research | P-80 Master assimilated allied Veteran 7a 37708 | -3/Research | P-80 Master assimilated allied Assassin 7a 37806 | -3/Research | Lost 5 parts (1p2n2w) 37886 | -3/Research | First assault squad dispatched 38086 | -3/Research | Build established: Scavenger-Mutant 38105 | -3/Research | Entered Quarantine 38352 | -3/Quarantine | Found Alien Artifact 38365 | -3/Quarantine | Found Alien Artifact 38565 | -3/Quarantine | Identified exit to Research 38674 | -3/Quarantine | System corruption reached 10% 38694 | -3/Quarantine | Found System Purifier 38971 | -3/Quarantine | Build established: Generator-Skirmisher 39017 | -3/Quarantine | Found Alien Artifact 39017 | -3/Quarantine | Identified Core Reset Matrix 39017 | -3/Quarantine | Identified Terrabomb (x2) 39017 | -3/Quarantine | Used Core Reset Matrix 39021 | -3/Quarantine | Detected hypermatrix surge 39021 | -3/Quarantine | Sensed 2 artifacts in vicinity 39082 | -3/Quarantine | Spotted Alpha 7 39130 | -3/Quarantine | Destroyed Alpha 7 39191 | -3/Quarantine | Found Unknown Device 39192 | -3/Quarantine | Identified Antimissile System 39195 | -3/Quarantine | Found Prototype Device 39195 | -3/Quarantine | Identified Exp. ECM Suite 39204 | -3/Quarantine | Lost 4 parts (1n3w) 39214 | -3/Quarantine | Found Sigix Terminator 39391 | -3/Quarantine | Scanned by Researcher 39399 | -3/Quarantine | Used Terrabomb 39405 | -3/Quarantine | Found Phase Armor 39497 | -3/Quarantine | Discovered exit to Research (range 9) 39508 | -3/Quarantine | Entered Research 39508 | -2/Research | Evolved 2 slots: Propulsion x1, Weapon x1 39694 | -2/Research | Found Unknown Launcher 39694 | -2/Research | Identified Fusion Bomb Launcher 39782 | -2/Research | Build established: Scavenger-Mutant 40272 | -2/Research | Discovered new exit (range 5) 40277 | -2/Research | Identified exit to Access 40563 | -2/Research | Found Prototype Device 40563 | -2/Research | Identified Exp. Focal Shield 40603 | -2/Research | Lost 3 parts (2u1w) 41008 | -2/Research | First assault squad dispatched 41061 | -2/Research | Identified exit to Testing 41067 | -2/Research | Lost 4 parts (1n1u2w) 41201 | -2/Research | Entered Testing 41283 | -2/Testing | Found Prototype Ballistic Gun 41283 | -2/Testing | Identified Hyp. Multirail 41381 | -2/Testing | Found Prototype Processor 41387 | -2/Testing | Identified Exp. Core Analyzer 41479 | -2/Testing | First assault squad dispatched 41523 | -2/Testing | Incoming assault squad redirected 41547 | -2/Testing | Found Unknown Device 41554 | -2/Testing | Lost 7 parts (1p2n2u2w) 41730 | -2/Testing | Identified Launcher Loader 41786 | -2/Testing | Discovered exit to Access (range 9) 41901 | -2/Testing | Protovariant out of control (PX-540X8UTAKN) 41901 | -2/Testing | Unleashed a protovariant (PX-540X8UTAKN) 41930 | -2/Testing | Incoming assault squad redirected 41957 | -2/Testing | Incoming assault squad redirected 41974 | -2/Testing | Incoming assault squad redirected 41999 | -2/Testing | Entered Access 41999 | -1/Access | Evolved 2 slots: Utility x2 42022 | -1/Access | Lost 3 parts (1n2w) 42135 | -1/Access | Identified exit to Command 42249 | -1/Access | First assault squad dispatched 42458 | -1/Access | Lost 8 parts (2p2u4w) 42645 | -1/Access | Assimilated G-73 Enforcer with FLK Orb 42648 | -1/Access | Assimilated G-73 Enforcer with FLK Orb 42651 | -1/Access | Assimilated G-73 Enforcer with FLK Orb 42661 | -1/Access | Lost 8 parts (2p2n4w) 42754 | -1/Access | System corruption reached 10% 42794 | -1/Access | Lost 8 parts (1p2n3u2w) 42875 | -1/Access | Fired Sigix Terminator 42876 | -1/Access | Core integrity fell below 50% 42891 | -1/Access | Assimilated S-43 Plague with FLK Orb 42906 | -1/Access | Lost 19 parts (3p5n8u3w) 42909 | -1/Access | Emitted hypermatrix ping 42914 | -1/Access | Assembled emerged from beneath the floor 42928 | -1/Access | Assembled emerged from beneath the floor 42960 | -1/Access | Assembled emerged from beneath the floor 42961 | -1/Access | Garrison activated, responded to threat 42966 | -1/Access | Assimilated H-88 Terminator with FLK Orb 42969 | -1/Access | Spotted B-99 Colossus 43014 | -1/Access | Assembled emerged from beneath the floor 43041 | -1/Access | Garrison activated, responded to threat 43073 | -1/Access | Core integrity fell below 20% 43075 | -1/Access | Destroyed by S-43 Plague with Heavy Machine Gun Last Messages --------------- 43070_ Hvy. Machine Gun destroyed. 43070_ S-43 Plague destroyed. 43070_ K-01 Serf collects debris. 43070_ R-10 Processor collects Unknown Wheel. 43071_ Slug penetrates Wall. 43071_ Acquired Unknown Engine. 43071_ Identified Imp. Ion Engine. 43071_ Field Propulsion Array destroyed. 43071_ Xenon Bombardment Thruster destroyed. 43072_ / P|:93QEYVYQ: 5PDET#8HC 43072_ Slug penetrates Wall. 43072_ Adv. Thermal Shield destroyed. 43072_ Dropped Imp. Ion Engine. 43073_ Dropped Hvy. Machine Gun. 43073_ K-01 Serf collects debris. 43074_ Penetrated by Slug. 43074_ G-73 Enforcer suffers critical hit. 43074_ G-73 Enforcer destroyed. 43074_ K-01 Serf collects debris. 43075_ Penetrated by Slug. Map ----- +----------------------------------------------------+ | ?????????????????????# #% | | ?????????????????????# + % | | ?????????????????????# #!%% | | ?????????????????????#########/## !! | | ???????????????????????????? %%=# !! | | ?????????????????????????? % # ""Y"" ! | | ???????????????????????? "" # """"" | | ?????????????????????? """" # | | ???????????????????? """" # | | ???????????????????# """" # %%%% | | ???????????????????#? """" = # %% ### | | ?????????????????????? """" *% # %%% #?? | | ?????????????????????????"" ! # % % % ### | | ??????????????????????????" # | | ?????????????????????????? # % ### | | ?????????????????????????? % #! #?? | | ????????+####################;###% #?? | | ???????? * ########## | | ??????? s%== # | | ??????? =[|%![% % %# | | ?????? %*%!= % + | | ?????? !]]%[ % # * | | ?????? !s%]! # % | | ?????? ]]!% # = | | ?????????##+####### g %############### | | ??????????????????# @#?????????????# | | ??????????????????# k #?????????????# | | ??????????????Aghhh ?????????????# | | ??????????? """""## ?????????????# | | ?????????????"""??# ????????????# | | ??????????????"???# ????????????########## | | ??????????????????# ????????????????????? | | ??????????????????# ????????????????????? | | ??????????????????# ???????????????????? | | ??????????????????#! ???????????????????? | | ??????????????????# ??????????????????? | | ??????????????????# ??????????????????? | | ??????????????????# ?????????????????? | | ??????????????????##"F ""#######?????????????????? | | ???????????????????#"""""????????????????????????? | | ?????????????????????""""????????????????????????? | | ?????????????????????????????????????????????????? | | ?????????????????????????????????????????????????? | | ?????????????????????????????????????????????????? | | ?????????????????????????????????????????????????? | | ?????????????????????????????????????????????????? | | ?????????????????????????????????????????????????? | | ?????????????????????????????????????????????????? | | ?????????????????????????????????????????????????? | | ?????????????????????????????????????????????????? | +----------------------------------------------------+ Best States ------------- Heat Dissipation 143 Coolant Potential 100 Energy Generation 69 Energy Capacity 690 Matter Stores 300 Matter Capacity 300 Sight Range 20 Robot Scan Range 20 Terrain Scan Range 24 Terrain Scan Density 210 Jamming Range 12 Power Amplification 30 Armor Coverage 225 Resistance: KI 30 Resistance: EM 15 Propulsion Shielding 33 Reclamation Efficiency 20 Phase Shifting 10 Evasion (%) 63 Melee Accuracy 6 Target Analysis 5 Core Analysis 15 Recoil Reduction 1 Offensive Hacking 10 Defensive Hacking 12 Relay Coupler Types 26 Relay Coupler Value 1 Item Schematics ----------------- None Robot Schematics ------------------ None Fabricated ------------ Lrn. Sensor Array | x1 | -7/Factory Adv. Signal Interpreter | x2 | -6/Factory Alien Tech Used ----------------- Core Reset Matrix Sigix Terminator Terrabomb Phase Armor Achievements -------------- Cya! Maybe Next Time I'll Detach My Launcher Challenges ------------ None Game ------ Seed TeslaEtherialLeg Manual? 0 Play Time 07:29:06 Cumulative 214.7 hours Start 2020.12.21 @ 09:31:08 End 2020.12.24 @ 18:45:43 Sessions 21 Manual Loads 0 Difficulty Rogue Special Mode None Game No. 63 Rogue 40 Adventurer 23 Explorer 0 Win Type - Total 8 Types 7/0/0/1/0/0/0/0/0 Lore% 87 Gallery% 85 Achievement% 68 Wizard Run 0 Options --------- ASCII 0 Keyboard 0 Movement Mouse Keybinds 0 Fullscreen 1 Font 18/SmallcapsGlow Map View 76x50 Tactical HUD 1 Map Filters NONE Filters NONE Steam 1 RUN: 14c814f5-8899-4948-8ac6-a767f70141d4